Workbook

Sheet Sheet1
A1: INSTRUCTIONS: Use this form when a single information collection document involves multiple reporting and recordkeeping requirements. The totals of the figures in cols. should be entered in item 13 of OMB-83-I: cols. (D) &/or (I) = 13a (respondent is only counted once); cols. F & I = 13b; cols. H & K = 13c. (F)Total/(D)Total = (E)Average (H)Total/(F)Total = (G)Average (K)Total/(I)Total = (J)Average NOTE: The columns will calculate automatically. If Col. E's response is something other than annually, i.e., 1/6 years, list as "1/6" & decimal will display. | I1: TITLE OF INFORMATION COLLECTION DOCUMENT | O1: OMB NO. | P1: 0563-0085
I3: Subpart U – Ineligibility for Programs under the Federal Crop Insurance Act
O4: DATE PREPARED
O5: 2026-01-22
A10: IDENTIFICATION OF REPORTING OR RECORDKEEPING REQUIREMENT | H10: ANNUAL BURDEN
H12: REPORTS | N12: RECORDS | Q12: RESPONDENT COST
L14: TOTAL BURDEN HOURS | P14: TOTAL
G15: FORMS NO (S) | H15: NO. OF | I15: NO OF | J15: TOTAL ANNUAL | K15: HOURS | L15: (Col. F x G) | N15: NO. OF | O15: ANNUAL | P15: RECORD- | Q15: COST | R15: TOTAL | S15: Previous | T15: Difference Due | U15: Difference due
A16: SECTION OF | B16: DESCRIPTION | G16: (If "none" | H16: RESPONDENTS | I16: RESPONSES | J16: RESPONSES | K16: PER | L16: (H) | N16: RECORD- | O16: HOURS PER | P16: KEEPING HOURS | Q16: PER | R16: COST | S16: Submission | T16: to Program | U16: to Adjustments
A17: REGS. | G17: so state) | I17: PER | J17: (Col. D x E) | K17: RESPONSE | N17: KEEPERS | O17: RECORD- | P17: (Col. I x J) | Q17: HOUR | R17: (Col. H x L) | S17: Total Hours | T17: Changes | U17: (Col. H - N)
I18: RESPONDENT | L18: EXEMPT | M18: NON-EXEMPT | O18: KEEPER
A19: (A) | B19: (B) | G19: (C) | H19: (D) | I19: (E) | J19: (F) | K19: (G) | N19: (I) | O19: (J) | P19: (K) | Q19: (L) | R19: (M) | S19: (N) | T19: (O) | U19: (P)
A20: 7 CFR Part 400, subpart U | B20: Reporting Information | G20: None | H20: 13 | I20: 404 | J20: =SUM(H20*I20) -> 5,252 | K20: 0.2500 | M20: =SUM(J20*K20) -> 1,313.0000 | N20: 0 | O20: 0.000 | P20: 0.00 | Q20: $40.57 | R20: =SUM(M20*Q20) -> 53,268.4100 | S20: 1,246.0000 | T20: 0.0000 | U20: =M20-S20 -> 67.0000
A21: 7 CFR Part 400, subpart U | B21: Late Payment of Debt AIP Reinstatement | G21: None | H21: 13 | I21: 149 | J21: =SUM(H21*I21) -> 1,937 | K21: 0.3333 | M21: =SUM(J21*K21) -> 645.6021 | N21: 0 | O21: 0.000 | P21: 0.00 | Q21: $40.57 | R21: =SUM(M21*Q21) -> 26,192.0772 | S21: 345.3330 | T21: 0.0000 | U21: =M21-S21 -> 300.2691
A22: 7 CFR Part 400, subpart U | B22: Late Payment of Debt Administrator Reinstatement | G22: None | H22: 13 | I22: 38 | J22: 494 | K22: 2.0000 | M22: =SUM(J22*K22) -> 988.0000 | N22: 0 | O22: 0.000 | P22: =N22*O22 -> 0.00 | Q22: $40.57 | R22: =SUM(M22*Q22) -> 40,083.1600 | S22: 616.0000 | T22: 0.0000 | U22: 372.0000
B23: SUBTOTAL | J23: =SUM(J20:J22) -> 7,683 | L23: =SUM(L20:L22) -> 0 | M23: =SUM(M20:M22) -> 2,946.6021 | P23: =SUM(P20:P22) -> 0.00 | R23: =SUM(R20:R22) -> 119,543.6472 | S23: =SUM(S20:S22) -> 2,207.3330 | T23: =SUM(T20:T22) -> 0.0000 | U23: =SUM(U20:U22) -> 739.2691
B24: TOTAL OF ALL PAGES | J24: =SUM(J23) -> 7,683 | L24: =SUM(L23) -> 0 | M24: =SUM(M23) -> 2,946.6021 | P24: =SUM(P23) -> 0.00 | R24: =SUM(R23) -> 119,543.6472
A25: TOTAL - COLUMNS "F" AND "I" = OMB 83-I, 13b; COLUMNS "H" AND "K" = OMB 83-I, 13c | J25: =SUM(J24+N24) -> 7,683 | M25: =SUM(M24+P24) -> 2,946.6021 | R25: =SUM(R24) -> 119,543.6472
